lending/lending_fUSD_20240112
["ID","MTS","AMOUNT","RATE_DAILY","PERIOD"]
[311393228,1705075850248,-649.26,0.00022786,2]
[311393230,1705075850257,-500.0,0.00022786,2]
[311393232,1705075850267,-500.0,0.00022786,2]
[311393234,1705075850277,-1671.96,0.00022786,2]
[311393236,1705075850287,-1031.61,0.00022786,2]
[311393238,1705075850296,-500.0,0.00022786,2]
[311393240,1705075850307,-500.0,0.00022786,2]
[311393242,1705075850316,-3843.97,0.00022786,2]
[311393244,1705075850326,-989.75,0.00022786,2]
[311393246,1705075850335,-1826.95,0.00022786,2]
[311393248,1705075850347,-500.0,0.00022786,2]
[311393250,1705075850356,-500.0,0.00022786,2]
[311393252,1705075850366,-834.63,0.00022786,2]
[311393254,1705075850376,-555.31,0.00022786,2]
[311393256,1705075850386,-743.08,0.00022786,2]
[311393258,1705075850396,-3344.82,0.00022786,2]
[311393260,1705075850406,-720.79,0.00022786,2]
[311393262,1705075850416,-500.0,0.00022786,2]
[311393265,1705075850426,-500.0,0.00022788,2]
[311393267,1705075850436,-500.0,0.00022788,2]
[311393269,1705075850446,-500.0,0.00022788,2]
[311393271,1705075850458,-500.0,0.00022788,2]
[311393272,1705075850468,-500.0,0.00022788,2]
[311393275,1705075850479,-500.0,0.00022788,2]
[311393276,1705075850490,-500.0,0.00022788,2]
[311393279,1705075850500,-500.0,0.00022788,2]
[311393280,1705075850509,-500.0,0.00022788,2]
[311393282,1705075850519,-500.0,0.00022788,2]
[311393285,1705075850529,-500.0,0.00022788,2]
[311393287,1705075850542,-500.0,0.00022788,2]
[311393289,1705075850552,-500.0,0.00022788,2]
[311393291,1705075850562,-500.0,0.00022788,2]
[311393293,1705075850571,-500.0,0.00022788,2]
[311393295,1705075850581,-500.0,0.00022788,2]
[311393297,1705075850591,-479.23406695,0.00022788,2]
[311393299,1705075850600,-500.0,0.00022788,2]
[311393301,1705075850610,-500.0,0.00022788,2]
[311393303,1705075850620,-500.0,0.00022788,2]
[311393305,1705075850629,-600.16,0.00022788,2]
[311393307,1705075850638,-500.0,0.00022788,2]
[311393309,1705075850648,-500.0,0.00022788,2]
[311393311,1705075850657,-500.0,0.00022788,2]
[311393313,1705075850667,-500.0,0.00022788,2]
[311393315,1705075850677,-500.0,0.00022788,2]
[311393317,1705075850687,-500.0,0.00022788,2]
[311393320,1705075850696,-500.0,0.00022788,2]
[311393322,1705075850708,-500.0,0.00022788,2]
[311393324,1705075850717,-1658.71,0.00022788,2]
[311393326,1705075850726,-500.0,0.00022788,2]
[311393328,1705075850736,-500.0,0.00022788,2]
[311393330,1705075850745,-500.0,0.00022788,2]
[311393331,1705075850755,-500.0,0.00022788,2]
[311393334,1705075850766,-500.0,0.00022788,2]
[311393335,1705075850775,-500.0,0.00022788,2]
[311393338,1705075850785,-500.0,0.00022788,2]
[311393339,1705075850795,-500.0,0.00022788,2]
[311393342,1705075850805,-500.0,0.00022788,2]
[311393344,1705075850815,-500.0,0.00022788,2]
[311393345,1705075850825,-500.0,0.00022788,2]
[311393347,1705075850836,-838.7,0.00022788,2]
[311393349,1705075850845,-500.0,0.00022788,2]
[311393351,1705075850855,-500.0,0.00022788,2]
[311393353,1705075850865,-500.0,0.00022788,2]
[311393356,1705075850879,-500.0,0.00022788,2]
[311393358,1705075850890,-500.0,0.00022788,2]
[311393360,1705075850899,-500.0,0.00022788,2]
[311393362,1705075850910,-500.0,0.00022788,2]
[311393364,1705075850919,-500.0,0.00022788,2]
[311393366,1705075850929,-624.34,0.00022788,2]
[311393367,1705075851207,-500.0,0.00022788,2]
[311393368,1705075851217,-500.0,0.00022788,2]
[311393369,1705075851227,-500.0,0.00022788,2]
[311393370,1705075851237,-500.0,0.00022788,2]
[311393371,1705075851246,-500.0,0.00022788,2]
[311393372,1705075851256,-480.57949157,0.00022788,2]
[311393373,1705075851266,-500.0,0.00022788,2]
[311393374,1705075851275,-500.0,0.00022788,2]
[311393375,1705075851286,-500.0,0.00022788,2]
[311393376,1705075851296,-500.0,0.00022788,2]
[311393377,1705075851306,-500.0,0.00022788,2]
[311393378,1705075851315,-1475.68,0.00022788,2]
[311393379,1705075851325,-500.0,0.00022788,2]
[311393380,1705075851333,-500.0,0.00022788,2]
[311393381,1705075851343,-500.0,0.00022788,2]
[311393382,1705075851355,-500.0,0.00022788,2]
[311393383,1705075851365,-500.0,0.00022788,2]
[311393384,1705075851374,-500.0,0.00022788,2]
[311393385,1705075851384,-500.0,0.00022788,2]
[311393386,1705075851394,-500.0,0.00022788,2]
[311393387,1705075851403,-574.87,0.00022788,2]
[311393388,1705075851413,-500.0,0.00022788,2]
[311393389,1705075851422,-505.17,0.00022788,2]
[311393390,1705075851432,-500.0,0.00022788,2]
[311393391,1705075851441,-500.0,0.00022788,2]
[311393392,1705075851451,-500.0,0.00022788,2]
[311393393,1705075851460,-500.0,0.00022788,2]
[311393394,1705075851470,-500.0,0.00022788,2]
[311393395,1705075851479,-500.0,0.00022788,2]
[311393396,1705075851489,-500.0,0.00022788,2]
[311393397,1705075851497,-500.0,0.00022788,2]
[311393398,1705075851507,-500.0,0.00022788,2]
[311393399,1705075851516,-742.45,0.00022788,2]
[311393400,1705075851526,-500.0,0.00022788,2]
[311393401,1705075851536,-500.0,0.00022788,2]
[311393402,1705075851545,-500.0,0.00022788,2]
[311393403,1705075851554,-500.0,0.00022788,2]
[311393404,1705075851564,-500.0,0.00022788,2]
[311393405,1705075851574,-1159.74,0.00022788,2]
[311393406,1705075851583,-500.0,0.00022788,2]
[311393407,1705075851592,-500.0,0.00022788,2]
[311393408,1705075851602,-2896.78,0.00022788,2]
[311393409,1705075851611,-500.0,0.00022788,2]
[311393410,1705075851621,-1231.85,0.00022788,2]
[311393411,1705075851631,-569.54,0.00022788,2]
[311393412,1705075851640,-500.0,0.00022788,2]
[311393413,1705075851650,-562.2,0.00022788,2]
[311393414,1705075851660,-500.0,0.00022788,2]
[311393415,1705075851670,-500.0,0.00022788,5]
[311393416,1705075851680,-1129.24,0.00022788,2]
[311393417,1705075851691,-500.0,0.00022788,2]
[311393418,1705075851701,-500.0,0.00022788,2]
[311393419,1705075851711,-1294.98,0.00022788,2]
[311393420,1705075851721,-500.0,0.00022788,2]
[311393421,1705075851731,-500.0,0.00022788,2]
[311393422,1705075851742,-500.0,0.00022788,2]
[311393423,1705075851751,-698.91,0.00022788,2]
[311393424,1705075851761,-500.0,0.00022788,2]
[311393425,1705075851771,-500.0,0.00022788,2]
[311393426,1705075851781,-500.0,0.00022788,2]
[311393427,1705075851791,-500.0,0.00022788,2]
[311393428,1705075851800,-500.0,0.00022788,2]
[311393429,1705075851810,-500.0,0.00022788,2]
[311393430,1705075851820,-500.0,0.00022788,2]
[311393431,1705075851829,-725.39,0.00022788,2]
[311393432,1705075851838,-500.0,0.00022788,2]
[311393433,1705075851847,-500.0,0.00022788,2]
[311393434,1705075851857,-500.0,0.00022788,2]
[311393435,1705075851866,-500.0,0.00022788,2]
[311393436,1705075851875,-500.0,0.00022788,2]
[311393437,1705075851886,-500.0,0.00022788,2]
[311393438,1705075851896,-670.33,0.00022788,2]
[311393439,1705075851905,-500.0,0.00022788,2]
[311393440,1705075851914,-500.0,0.00022788,2]
[311393441,1705075851923,-500.0,0.00022788,2]
[311393442,1705075851933,-741.53,0.00022788,2]
[311393443,1705075851943,-500.0,0.00022788,2]
[311393444,1705075851953,-808.2,0.00022788,2]
[311393445,1705075851962,-500.0,0.00022788,2]
[311393446,1705075851974,-532.37,0.00022788,2]
[311393447,1705075851985,-500.0,0.00022788,2]
[311393448,1705075851994,-500.0,0.00022788,2]
[311393449,1705075852004,-500.0,0.00022788,2]
[311393450,1705075852013,-500.0,0.00022788,2]
[311393451,1705075852023,-500.0,0.00022788,2]
[311393452,1705075852032,-500.0,0.00022788,2]
[311393453,1705075852043,-500.0,0.00022788,2]
[311393454,1705075852052,-500.0,0.00022788,2]
[311393455,1705075852062,-550.19,0.00022788,2]
[311393456,1705075852071,-500.0,0.00022788,2]
[311393457,1705075852081,-500.0,0.00022788,2]
[311393458,1705075852091,-500.0,0.00022788,2]
[311393459,1705075852102,-796.03,0.00022788,2]
[311393460,1705075852111,-500.0,0.00022788,2]
[311393461,1705075852121,-500.0,0.00022788,2]
[311393462,1705075852131,-776.14,0.00022788,2]
[311393463,1705075852141,-500.0,0.00022788,2]
[311393464,1705075852150,-500.0,0.00022788,2]
[311393465,1705075852159,-500.0,0.00022788,2]
[311393466,1705075852169,-632.55,0.00022788,2]
[311393467,1705075852178,-500.0,0.00022788,2]
[311393468,1705075852188,-500.0,0.00022788,2]
[311393469,1705075852198,-500.0,0.00022788,2]
[311393470,1705075852212,-500.0,0.00022788,2]
[311393471,1705075852221,-787.44,0.00022788,2]
[311393472,1705075852232,-500.0,0.00022788,2]
[311393473,1705075852241,-500.0,0.00022788,2]
[311393474,1705075852250,-330.23422484,0.00022789,2]
[311393475,1705075852260,-155.0,0.00022789,2]
[311393476,1705075852270,-155.0,0.00022789,2]
[311393477,1705075852279,-627.79851458,0.00022789,2]
[311393478,1705075852289,-214.8965107,0.00022789,2]
[311393479,1705075852298,-159.60119728,0.00022789,2]
[311393480,1705075852307,-795.37221232,0.00022789,2]
[311393481,1705075852317,-195.70065275,0.00022789,2]
[311393482,1705075852328,-189.57019599,0.00022789,2]
[311393483,1705075852337,-198.82869337,0.00022789,2]
[311393484,1705075852347,-276.45356326,0.00022789,2]
[311393485,1705075852358,-262.94748596,0.00022789,2]
[311393486,1705075852368,-210.54949407,0.00022789,2]
[311393487,1705075852377,-500.0,0.00022789,2]
[311393488,1705075852387,-268.26411618,0.00022789,2]
[311393489,1705075852397,-287.31175887,0.00022789,2]
[311393490,1705075852407,-500.0,0.00022789,2]
[311393491,1705075852418,-500.0,0.00022789,2]
[311393492,1705075852427,-500.0,0.00022789,2]
[311393493,1705075852438,-500.0,0.00022789,2]
[311393494,1705075852448,-500.0,0.00022789,2]
[311393495,1705075852462,-500.0,0.00022789,2]
[311393496,1705075852473,-500.0,0.00022789,2]
[311393497,1705075852483,-500.0,0.00022789,2]
[311393498,1705075852494,-610.70936316,0.00022789,2]
[311393499,1705075852503,-500.0,0.00022789,2]
[311393500,1705075852513,-500.0,0.00022789,2]
[311393501,1705075852525,-500.0,0.00022789,2]
[311393502,1705075852535,-500.0,0.00022789,2]
[311393503,1705075852547,-500.0,0.00022789,2]
[311393504,1705075852557,-500.0,0.00022789,2]
[311393505,1705075852567,-500.0,0.00022789,2]
[311393506,1705075852576,-500.0,0.00022789,2]
[311393507,1705075852586,-500.0,0.00022789,2]
[311393508,1705075852596,-500.0,0.00022789,2]
[311393509,1705075852606,-500.0,0.00022789,2]
[311393510,1705075852618,-500.0,0.00022789,2]
[311393511,1705075852627,-500.0,0.00022789,2]
[311393512,1705075852638,-500.0,0.00022789,2]
[311393513,1705075852648,-500.0,0.00022789,2]
[311393514,1705075852657,-500.0,0.00022789,2]
[311393515,1705075852666,-500.0,0.00022789,2]
[311393516,1705075852675,-500.0,0.00022789,2]
[311393517,1705075852685,-500.0,0.00022789,2]
[311393518,1705075852694,-205.9169873,0.00022789,2]
[311393519,1705075852705,-500.0,0.00022789,2]
[311393520,1705075852714,-554.08394981,0.00022789,2]
[311393521,1705075852723,-500.0,0.00022789,2]
[311393522,1705075852732,-500.0,0.00022789,2]
[311393523,1705075852743,-500.0,0.00022789,2]
[311393524,1705075852753,-500.0,0.00022789,2]
[311393525,1705075852763,-304.17139579,0.00022789,2]
[311393526,1705075852773,-500.0,0.00022789,2]
[311393527,1705075852783,-500.0,0.00022789,2]
[311393528,1705075852794,-426.83380744,0.00022789,2]
[311393529,1705075852804,-313.17518168,0.00022789,2]
[311393530,1705075852814,-500.0,0.00022789,2]
[311393531,1705075852823,-500.0,0.00022789,2]
[311393532,1705075852833,-500.0,0.00022789,2]
[311393533,1705075852841,-500.0,0.00022789,2]
[311393535,1705075852852,-500.0,0.00022789,2]
[311393536,1705075852862,-250.0,0.00022789,2]
[311393537,1705075852872,-500.0,0.00022789,2]
[311393538,1705075852882,-500.0,0.00022789,2]
[311393539,1705075852893,-207.643084,0.00022789,2]
[311393540,1705075852903,-500.0,0.00022789,2]
[311393541,1705075852913,-500.0,0.00022789,2]
[311393542,1705075852923,-1000.0,0.00022789,2]
[311393543,1705075852933,-500.0,0.00022789,2]
[311393544,1705075852943,-500.0,0.00022789,2]
[311393545,1705075852956,-500.0,0.00022789,2]
[311393546,1705075852966,-500.0,0.00022789,2]
[311393547,1705075852975,-500.0,0.00022789,2]
[311393548,1705075852985,-228.25863754,0.00022789,2]
[311393549,1705075852996,-630.68658742,0.00022789,2]
[311393550,1705075853005,-500.0,0.00022789,2]
[311393551,1705075853016,-500.0,0.00022789,2]
[311393552,1705075853025,-500.0,0.00022789,2]
[311393553,1705075853034,-500.0,0.00022789,2]
[311393554,1705075853043,-500.0,0.00022789,2]
[311393555,1705075853052,-500.0,0.00022789,2]
[311393556,1705075853063,-500.0,0.00022789,2]
[311393557,1705075853072,-500.0,0.00022789,2]
[311393558,1705075853081,-500.0,0.00022789,2]
[311393559,1705075853091,-500.0,0.00022789,2]
[311393560,1705075853101,-500.0,0.00022789,2]
[311393561,1705075853111,-500.0,0.00022789,2]
[311393562,1705075853121,-500.0,0.00022789,2]
[311393563,1705075853130,-500.0,0.00022789,2]
[311393564,1705075853140,-500.0,0.00022789,2]
[311393565,1705075853150,-500.0,0.00022789,2]
[311393566,1705075853159,-500.0,0.00022789,2]
[311393567,1705075853169,-500.0,0.00022789,2]
[311393568,1705075853179,-500.0,0.00022789,2]
[311393569,1705075853188,-500.0,0.00022789,2]
[311393570,1705075853198,-500.0,0.00022789,2]
[311393571,1705075853215,-500.0,0.00022789,2]
[311393572,1705075853224,-500.0,0.00022789,2]
[311393573,1705075853234,-500.0,0.00022789,2]
[311393574,1705075853244,-500.0,0.00022789,2]
[311393575,1705075853255,-500.0,0.00022789,2]
[311393576,1705075853265,-500.0,0.00022789,2]
[311393577,1705075853275,-500.0,0.00022789,2]
[311393578,1705075853285,-170.42278381,0.00022789,2]
[311393579,1705075853295,-500.0,0.00022789,2]
[311393580,1705075853305,-500.0,0.00022789,2]
[311393581,1705075853315,-500.0,0.00022789,2]
[311393582,1705075853325,-500.0,0.00022789,2]
[311393583,1705075853335,-500.0,0.00022789,2]
[311393584,1705075853346,-500.0,0.00022789,2]
[311393585,1705075853356,-500.0,0.00022789,2]
[311393586,1705075853366,-500.0,0.00022789,2]
[311393587,1705075853376,-500.0,0.00022789,2]
[311393588,1705075853386,-500.0,0.00022789,2]
[311393589,1705075853395,-500.0,0.00022789,2]
[311393590,1705075853405,-500.0,0.00022789,2]
[311393591,1705075853416,-183.67910046,0.00022789,2]
[311393592,1705075853426,-500.0,0.00022789,2]
[311393593,1705075853436,-500.0,0.00022789,2]
[311393594,1705075853446,-293.82155025,0.00022789,2]
[311393595,1705075853462,-500.0,0.00022789,2]
[311393596,1705075853471,-500.0,0.00022789,2]
[311393597,1705075853481,-500.0,0.00022789,2]
[311393598,1705075853491,-500.0,0.00022789,2]
[311393599,1705075853502,-500.0,0.00022789,2]
[311393600,1705075853512,-500.0,0.00022789,2]
[311393601,1705075853522,-500.0,0.00022789,2]
[311393602,1705075853532,-500.0,0.00022789,2]
[311393603,1705075853542,-500.0,0.00022789,2]
[311393604,1705075853552,-500.0,0.00022789,2]
[311393605,1705075853562,-500.0,0.00022789,2]
[311393606,1705075853572,-500.0,0.00022789,2]
[311393607,1705075853582,-500.0,0.00022789,2]
[311393608,1705075853592,-500.0,0.00022789,2]
[311393609,1705075853601,-500.0,0.00022789,2]
[311393610,1705075853611,-500.0,0.00022789,2]
[311393611,1705075853622,-500.0,0.00022789,2]
[311393612,1705075853632,-500.0,0.00022789,2]
[311393613,1705075853641,-201.94589277,0.00022789,2]
[311393614,1705075853651,-500.0,0.00022789,2]
[311393615,1705075853661,-500.0,0.00022789,2]
[311393616,1705075853670,-500.0,0.00022789,2]
[311393617,1705075853679,-500.0,0.00022789,2]
[311393618,1705075853688,-500.0,0.00022789,2]
[311393619,1705075853697,-500.0,0.00022789,2]
[311393620,1705075853709,-500.0,0.00022789,2]
[311393621,1705075853718,-500.0,0.00022789,2]
[311393622,1705075853727,-500.0,0.00022789,2]
[311393623,1705075853737,-500.0,0.00022789,2]
[311393624,1705075853745,-500.0,0.00022789,2]
[311393625,1705075853754,-500.0,0.00022789,2]
[311393626,1705075853764,-500.0,0.00022789,2]
[311393627,1705075853773,-500.0,0.00022789,2]
[311393628,1705075853782,-500.0,0.00022789,2]
[311393629,1705075853791,-1061.01,0.00022789,2]
[311393630,1705075853800,-500.0,0.00022789,2]
[311393631,1705075853809,-500.0,0.00022789,2]
[311393632,1705075853818,-500.0,0.00022789,2]
[311393633,1705075853828,-500.0,0.00022789,2]
[311393634,1705075853837,-500.0,0.00022789,2]
[311393635,1705075853846,-500.0,0.00022789,2]
[311393636,1705075853856,-1805.78,0.00022789,2]
[311393637,1705075853865,-500.0,0.00022789,2]
[311393638,1705075853874,-500.0,0.00022789,2]
[311393639,1705075853883,-500.0,0.00022789,2]
[311393640,1705075853892,-500.0,0.00022789,2]
[311393641,1705075853903,-500.0,0.00022789,2]
[311393642,1705075853913,-535.77365852,0.00022789,2]
[311393643,1705075853922,-500.0,0.00022789,2]
[311393644,1705075853931,-500.0,0.00022789,2]
[311393645,1705075853941,-500.0,0.00022789,2]
[311393646,1705075853951,-500.0,0.00022789,2]
[311393647,1705075853964,-156.59200298,0.00022789,2]
[311393648,1705075853973,-354.11957386,0.00022789,2]
[311393649,1705075853983,-500.0,0.00022789,2]
[311393650,1705075853992,-500.0,0.00022789,2]
[311393651,1705075854155,-500.0,0.00022789,2]
[311393652,1705075854165,-500.0,0.00022789,2]
[311393653,1705075854175,-500.0,0.00022789,2]
[311393654,1705075854184,-500.0,0.00022789,2]
[311393655,1705075854194,-500.0,0.00022789,2]
[311393656,1705075854205,-500.0,0.00022789,2]
[311393657,1705075854215,-500.0,0.00022789,2]
[311393658,1705075854226,-636.12,0.00022789,2]
[311393659,1705075854235,-500.0,0.00022789,2]
[311393660,1705075854245,-500.0,0.00022789,2]
[311393661,1705075854254,-500.0,0.00022789,2]
[311393662,1705075854264,-500.0,0.00022789,2]
[311393664,1705075854273,-389.28535053,0.00022789,2]
[311393665,1705075854283,-500.0,0.00022789,2]
[311393666,1705075854292,-500.0,0.00022789,2]
[311393667,1705075854301,-500.0,0.00022789,2]
[311393668,1705075854311,-500.0,0.00022789,2]
[311393669,1705075854321,-500.0,0.00022789,2]
[311393670,1705075854330,-500.0,0.0002279,2]
[311393671,1705075854339,-500.0,0.0002279,2]
[311393672,1705075854348,-500.0,0.0002279,2]
[311393673,1705075854358,-500.0,0.0002279,2]
[311393674,1705075854367,-500.0,0.0002279,2]
[311393675,1705075854376,-500.0,0.0002279,2]
[311393676,1705075854385,-500.0,0.0002279,2]
[311393677,1705075854395,-500.0,0.0002279,2]
[311393678,1705075854405,-500.0,0.0002279,2]
[311393679,1705075854415,-500.0,0.0002279,2]
[311393680,1705075854425,-500.0,0.0002279,2]
[311393681,1705075854435,-500.0,0.0002279,2]
[311393682,1705075854444,-500.0,0.0002279,2]
[311393683,1705075854455,-500.0,0.0002279,2]
[311393684,1705075854465,-500.0,0.0002279,2]
[311393685,1705075854474,-500.0,0.0002279,2]
[311393686,1705075854483,-500.0,0.0002279,2]
[311393687,1705075854492,-500.0,0.0002279,2]
[311393688,1705075854502,-500.0,0.0002279,2]
[311393689,1705075854511,-500.0,0.0002279,2]
[311393690,1705075854521,-500.0,0.0002279,2]
[311393691,1705075854530,-500.0,0.0002279,2]
[311393692,1705075854539,-500.0,0.0002279,2]
[311393693,1705075854549,-332.08,0.00022791,2]
[311393694,1705075854558,-12727.48659413,0.00022792,2]
[311393695,1705075854567,-3818.91363604,0.00022793,2]
[311393696,1705075854577,-1149.64498995,0.00022793,2]
[311393697,1705075854586,-571.5597639,0.00022793,2]
[311393698,1705075854595,-151.04,0.00022797,2]
[311393699,1705075854604,-155.0,0.000228,2]
[311393700,1705075854615,-129206.37916907,0.000228,2]
[311393701,1705075854625,-234.0566006,0.00022831,2]
[311393702,1705075854635,-500.0,0.00022891,2]
[311393703,1705075854644,-300.0,0.00022898,2]
[311393704,1705075854654,-300.0,0.00022898,2]
[311393705,1705075854663,-296.41613783,0.00022898,2]
[311393706,1705075854672,-670.33,0.00022899,2]
[311393707,1705075854681,-6878.20090393,0.000229,2]
[311393708,1705075854691,-250.0,0.000229,2]
[311393709,1705075854701,-234.0566006,0.000229,2]
[311393710,1705075854711,-157.90905001,0.000229,2]
[311393711,1705075854720,-500.0,0.000229,2]
[311393712,1705075854729,-2412.82299174,0.000229,2]
[311393713,1705075854738,-3818.91363604,0.000229,2]
[311393714,1705075854747,-12153.87317382,0.000229,2]
[311393715,1705075854756,-1149.64498995,0.000229,2]
[311393716,1705075854765,-571.5597639,0.000229,2]
[311393717,1705075854774,-191.15286754,0.000229,2]
[311393718,1705075854784,-12727.48659413,0.000229,2]
[311393719,1705075854793,-332.08,0.00022906,2]
[311393720,1705075854802,-3817.37292127,0.00022997,2]
[311393721,1705075854811,-207.56937403,0.00022998,2]
[311393722,1705075854820,-155.0,0.00022998,2]
[311393723,1705075854829,-374.64413116,0.00022998,2]
[311393724,1705075854839,-802.1795787,0.00022998,2]
[311393725,1705075854848,-155.23119929,0.00022998,2]
[311393726,1705075854857,-318.31330327,0.00022998,2]
[311393727,1705075854867,-390.82576445,0.00022998,2]
[311393728,1705075854877,-155.0,0.00022998,2]
[311393729,1705075854887,-164.13920204,0.00022998,2]
[311393730,1705075854898,-156.3401269,0.00022998,2]
[311393731,1705075854907,-155.6718047,0.00022998,2]
[311393732,1705075854916,-257.04878056,0.00022998,2]
[311393733,1705075854926,-670.33,0.00022998,2]
[311393734,1705075854935,-670.33,0.00022998,2]
[311393735,1705075854944,-158.37838692,0.00022999,2]
[311393736,1705075854953,-158.56041797,0.00022999,2]
[311393737,1705075854963,-252.23869713,0.00022999,2]
[311393738,1705075854972,-155.0,0.00022999,2]
[311393739,1705075854981,-150.01,0.00022999,2]
[311393740,1705075854990,-3292.32224499,0.00022999,2]
[311393741,1705075855000,-512715.82464027,0.00022999,2]
[311393742,1705075855009,-670.33,0.00022999,2]
[311393743,1705075855018,-670.33,0.00022999,2]
[311393744,1705075855027,-670.33,0.00022999,2]
[311393745,1705075855036,-670.33,0.00022999,2]
[311393746,1705075855046,-670.33,0.00022999,2]
[311393747,1705075855055,-670.33,0.00022999,2]
[311393748,1705075855065,-670.33,0.00022999,2]
[311393749,1705075855074,-670.33,0.00022999,2]
[311393750,1705075855083,-670.33,0.00022999,2]
[311393751,1705075855093,-670.33,0.00022999,2]
[311393752,1705075855103,-670.33,0.00022999,2]
[311393753,1705075855112,-670.33,0.00022999,2]
[311393754,1705075855121,-670.33,0.00022999,2]
[311393755,1705075855130,-670.33,0.00022999,2]
[311393756,1705075855139,-670.37753511,0.00022999,2]
[311393757,1705075855148,-150.0,0.00022999,2]
[311393758,1705075855157,-150.0,0.00022999,2]
[311393759,1705075855166,-150.0,0.00022999,2]
[311393760,1705075855176,-150.0,0.00022999,2]
[311393761,1705075855184,-150.0,0.00022999,2]
[311393762,1705075855194,-150.0,0.00022999,2]
[311393763,1705075855203,-150.0,0.00022999,2]
[311393764,1705075855215,-150.0,0.00022999,2]
[311393765,1705075855225,-150.0,0.00022999,2]
[311393766,1705075855235,-150.0,0.00022999,2]
[311393767,1705075855244,-150.0,0.00022999,2]
[311393768,1705075855254,-3705338.3540714,0.00023,2]
[311393769,1705075855263,-804289.40130263,0.00023,2]
[311393770,1705075855273,-1467289.86174125,0.00023,2]
[311393771,1705075855282,-54062.33555895,0.00023,2]
[311393772,1705075855655,-130844.93631606,0.00023,2]
[311393773,1705075855682,-159071.58372419,0.00023,2]
[311393774,1705075855718,-890.89,0.00023,2]
[311393775,1705075855799,-4644.03184937,0.00023,2]
[311393777,1705075856973,-840126.08354014,0.00023,2]
[311393778,1705075856988,-509508.16869798,0.00023,2]
[311393779,1705075857000,-999.88039011,0.00023,2]
[311393780,1705075857012,-16980.93340386,0.00023,2]
[311393781,1705075857366,-207.51207034,0.00022511,2]
[311393782,1705075857376,-293.13827709,0.00022512,2]
[311393783,1705075857413,-206.86172291,0.00022512,2]
[311393784,1705075857423,-500.0,0.00022514,2]
[311393785,1705075857432,-1500.76,0.00022784,2]
[311393786,1705075857442,-500.0,0.00022786,2]
[311393787,1705075857451,-500.0,0.00022788,2]
[311393788,1705075857462,-500.0,0.00022788,2]
[311393789,1705075857471,-48666.54785375,0.00023,2]
[311393790,1705075857482,-607.46896681,0.00023,2]
[311393791,1705075857494,-2487.15021336,0.00023,2]
[311393792,1705075857505,-6808.60091201,0.00023,2]
[311393793,1705075857516,-857.02403103,0.00023,2]
[311393794,1705075857650,-272.2365,0.00022509,2]
[311393795,1705075857666,-111.52755384,0.00022509,2]
[311393796,1705075857676,-346.14918287,0.00022509,2]
[311393797,1705075857685,-218.12896846,0.00022509,2]
[311393798,1705075857694,-876.90733852,0.00022509,2]
[311393799,1705075857702,-336.93860005,0.00022509,2]
[311393800,1705075857712,-417.6160908,0.00022511,2]